fUSD/lending_fUSD_20240113
["ID","MTS","AMOUNT","RATE_DAILY","PERIOD"]
[311446228,1705132237739,-450.02,0.0002254,2]
[311446229,1705132237748,-397.52240638,0.0002254,2]
[311446230,1705132237757,-4342.04855375,0.0002254,2]
[311446231,1705132237768,-176.13,0.00022548,2]
[311446232,1705132237779,-150.0,0.00022596,2]
[311446233,1705132237788,-150.0,0.000226,2]
[311446234,1705132237797,-153.72,0.000226,2]
[311446235,1705132237806,-310.86,0.000226,2]
[311446236,1705132237815,-239.95,0.000226,2]
[311446237,1705132237825,-150.0,0.000226,2]
[311446238,1705132237834,-150.0,0.000226,2]
[311446239,1705132237843,-150.0,0.000226,2]
[311446241,1705132237853,-407.77,0.000226,2]
[311446243,1705132237862,-388.74,0.000226,2]
[311446245,1705132237870,-150.0,0.000226,2]
[311446247,1705132237879,-150.0,0.000226,2]
[311446249,1705132237888,-150.0,0.000226,2]
[311446251,1705132237897,-587.44,0.000226,2]
[311446253,1705132237907,-492.91720837,0.00022669,2]
[311446255,1705132237915,-1011.15039789,0.0002267,2]
[311446257,1705132237925,-150.0,0.00022684,2]
[311446259,1705132237933,-800.0,0.00022685,2]
[311446261,1705132237942,-3335.6662,0.000227,2]
[311446263,1705132237951,-560.8668,0.000227,2]
[311446264,1705132237961,-654.24315723,0.000227,2]
[311446267,1705132237970,-297.45480263,0.00022768,2]
[311446271,1705132237979,-150.0,0.00022771,2]
[311446273,1705132237989,-654.2431572,0.00022798,2]
[311446276,1705132237998,-1011.15039789,0.000228,2]
[311446279,1705132238008,-134149.4784,0.000228,2]
[311446281,1705132238019,-250.9169,0.000228,2]
[311446284,1705132238029,-2432.2025,0.000228,2]
[311446286,1705132238038,-396.9506,0.000228,2]
[311446287,1705132238047,-364.16725568,0.000228,2]
[311446289,1705132238056,-200.0,0.00022816,2]
[311446291,1705132238065,-174.84,0.00022855,2]
[311446293,1705132238074,-150.0,0.00022859,2]
[311446295,1705132238083,-160.96,0.00022874,2]
[311446298,1705132238092,-170.92248736,0.00022882,2]
[311446300,1705132238102,-500.0,0.00022895,2]
[311446302,1705132238111,-654.2431572,0.00022896,2]
[311446304,1705132238119,-235.87030166,0.00022898,2]
[311446306,1705132238128,-572.14510643,0.00022898,2]
[311446308,1705132238138,-806.66684654,0.00022899,2]
[311446310,1705132238147,-333.10039923,0.00022899,2]
[311446312,1705132238156,-2436.4195,0.000229,2]
[311446314,1705132238166,-4412.7695,0.000229,2]
[311446316,1705132238175,-133511.5175,0.000229,2]
[311446318,1705132238183,-1486.9539,0.000229,2]
[311446320,1705132238193,-176.2402856,0.000229,2]
[311446322,1705132238201,-169.06540488,0.000229,2]
[311446323,1705132238210,-2069.45,0.000229,2]
[311446326,1705132238220,-152.51301999,0.000229,2]
[311446328,1705132238230,-175.55450764,0.000229,2]
[311446330,1705132238239,-364.16725568,0.000229,2]
[311446332,1705132238247,-153.09,0.00022915,2]
[311446334,1705132238256,-150.0,0.00022947,2]
[311446336,1705132238268,-4024.9761794,0.00022995,2]
[311446338,1705132238278,-2331.6970006,0.00022995,2]
[311446340,1705132238288,-131847.5866791,0.00022995,2]
[311446342,1705132238297,-4621.13534741,0.00022996,2]
[311446344,1705132238307,-2619.42571149,0.00022997,2]
[311446346,1705132238316,-189.057,0.00022997,2]
[311446348,1705132238326,-355.59710211,0.00022997,2]
[311446350,1705132238336,-259.87169978,0.00022997,2]
[311446352,1705132238345,-920.40049716,0.00022997,2]
[311446354,1705132238355,-155.41123668,0.00022997,2]
[311446356,1705132238366,-203.27312273,0.00022997,2]
[311446358,1705132238375,-3929.69462296,0.00022997,2]
[311446360,1705132238384,-155.0,0.00022997,2]
[311446362,1705132238394,-300.93559721,0.00022998,2]
[311446364,1705132238403,-4630.74851402,0.00022998,2]
[311446366,1705132238412,-472.70124021,0.00022998,2]
[311446368,1705132238425,-155.29193301,0.00022998,2]
[311446370,1705132238434,-253.96837294,0.00022998,2]
[311446372,1705132238444,-158.48029498,0.00022998,2]
[311446374,1705132238453,-309.79583088,0.00022998,2]
[311446376,1705132238463,-8723.28260162,0.00022998,2]
[311446378,1705132238472,-303.15269539,0.00022998,2]
[311446380,1705132238482,-25526.7278144,0.00022998,2]
[311446382,1705132238492,-378.35186113,0.00022998,2]
[311446384,1705132238502,-303.32016002,0.00022999,2]
[311446386,1705132238512,-155.46805855,0.00022999,2]
[311446387,1705132238522,-2317.09975572,0.00022999,2]
[311446390,1705132238531,-2805.46065223,0.00022999,2]
[311446392,1705132238540,-55355.46743782,0.00022999,2]
[311446394,1705132238550,-880.0,0.00022999,2]
[311446395,1705132238559,-928052.2140316,0.00023,2]
[311446398,1705132238570,-1476688.87888573,0.00023,2]
[311446399,1705132238579,-699573.85274079,0.00023,2]
[311446411,1705132238680,-1000.0,0.00023,2]
[311446563,1705132240077,-156.99961797,0.00022697,2]
[311446566,1705132240087,-416.81216205,0.00023,2]
[311446701,1705132242636,-489.69301051,0.00023,2]
[311446702,1705132242650,-307.30698949,0.00023,2]
[311446703,1705132242660,-591.25708074,0.00023,2]
[311446708,1705132246452,-763.75703069,0.0002254,3]
[311446709,1705132246461,-2146.1897549,0.00022895,3]
[311446710,1705132246470,-156.99961797,0.000229,2]
[311446711,1705132246479,-624.05359644,0.00022995,3]
[311446712,1705132246493,-1732.17608969,0.00022995,3]
[311446713,1705132246504,-754.15955611,0.00022995,3]
[311446714,1705132253948,609.37423577,0.0002158,2]
[311446715,1705132256678,176.13,0.00022,2]
[311446716,1705132263411,543.79070814,0.0002158,2]
[311446717,1705132264259,497.74555716,0.00020698,5]
[311446718,1705132264279,716.88882228,0.00020698,5]
[311446719,1705132266431,497.74555716,0.0002158,2]
[311446720,1705132266456,534.82824986,0.0002158,2]
[311446721,1705132270363,500.0,0.0002158,2]
[311446722,1705132271902,1276.46424959,0.0002158,5]
[311446723,1705132273682,544.30238202,0.0002158,2]
[311446724,1705132274036,851.23643534,0.0002158,2]
[311446725,1705132278913,3153.64827546,0.00021,2]
[311446726,1705132280939,9700.49163397,9e-05,2]
[311446727,1705132283402,544.42507473,0.0002158,2]
[311446728,1705132285509,1032.57380702,0.0002158,2]
[311446729,1705132285899,1276.46424959,0.0002158,5]
[311446730,1705132286186,1525.37989393,0.00018,2]
[311446731,1705132286317,500.0,0.0002158,2]
[311446732,1705132288014,851.23643534,0.0002158,2]
[311446733,1705132292049,624.14902455,0.0001,2]
[311446734,1705132292494,7418.75348729,0.0002158,2]
[311446735,1705132303902,1276.46424959,0.0002158,5]
[311446736,1705132304017,851.23643534,0.0002158,2]
[311446737,1705132305526,1037.60293257,0.0002158,2]
[311446738,1705132306499,2614.47835047,0.0002158,2]
[311446739,1705132314592,1090.26598457,0.0002,7]
[311446740,1705132318028,428.36175537,0.0002158,2]
[311446741,1705132321380,5607.87225538,0.000155,2]
[311446742,1705132321905,1276.46424959,0.0002158,5]
[311446743,1705132342549,724.80076013,0.0002158,5]
[311446744,1705132345416,166.87,0.00021972,2]
[311446745,1705132345945,1879.46885289,0.00015,2]
[311446746,1705132363194,287.5574484,0.00021862,2]
[311446747,1705132378359,150.0,0.00022,2]
[311446748,1705132384334,2114.627127,0.00021976,2]
[311446749,1705132415270,359.11,0.00019817,2]
[311446750,1705132425863,168.57,0.00017276,2]
[311446751,1705132446233,2215.64015997,0.0002,2]
[311446752,1705132446775,262.55730004,0.00022,2]
[311446753,1705132450908,250.0,0.00021531,2]
[311446755,1705132462661,4023.62583679,0.00022,2]
[311446757,1705132543344,463.3,0.00021358,2]
[311446758,1705132600244,1003.60127984,0.0002198,2]
[311446760,1705132604866,151.54,0.00021455,2]
[311446761,1705132605276,151.54,0.00021828,2]
[311446762,1705132607665,23900.0,0.00021295,2]
[311446764,1705132627757,508.04354887,0.00021277,2]
[311446765,1705132627780,229.55645113,0.00021277,2]
[311446766,1705132651277,152.97,0.00021244,2]
[311446767,1705132651475,152.97,0.00021362,2]
[311446768,1705132651672,152.97,0.0002148,2]
[311446769,1705132651871,152.97,0.00021598,2]
[311446770,1705132652259,152.97,0.00021716,2]
[311446771,1705132652629,152.97,0.00021834,2]
[311446772,1705132653028,152.97,0.00021952,2]
[311446773,1705132658314,878.33,0.00021216,2]
[311446775,1705132715118,160.0059934,0.00021926,2]
[311446776,1705132716351,887.1485723,0.0002198,2]
[311446777,1705132723739,2000.0,0.00021211,2]
[311446778,1705132741588,20926.51,0.0003,90]
[311446779,1705132757750,2069.45,0.0003,90]
[311446780,1705132789499,157.22,0.00021413,2]
[311446781,1705132792816,158.51725912,0.00022,2]
[311446782,1705132793762,376.86476321,0.00022,2]
[311446783,1705132794454,558.28754021,0.00022,2]
[311446784,1705132799255,2317.60219358,0.00022,2]
[311446785,1705132801252,1427.72502112,0.00022,2]
[311446786,1705132811993,500.0,0.00021918,2]
[311446787,1705132825827,4622.10943873,0.00022,2]
[311446788,1705132827299,3041.68165519,0.00022,2]
[311446789,1705132829108,2613.37807316,0.00022,2]
[311446790,1705132831644,155.0,0.00022,2]
[311446791,1705132833707,11670.22916678,0.00022,2]
[311446792,1705132835747,137531.6958,0.00021971,2]
[311446793,1705132836956,1040.70210377,0.00022,2]
[311446794,1705132840113,1000.0,0.0002197,2]
[311446795,1705132848054,309.8668701,0.00022,2]
[311446796,1705132849764,472.81060698,0.00022,2]
[311446797,1705132854143,1000.0,0.00021486,2]
[311446798,1705132864367,205.0,0.00021379,2]
[311446799,1705132869706,1070.6199,0.00021971,2]
[311446800,1705132875133,1000.0,0.00021486,2]
[311446801,1705132875188,184.43995122,0.000219,2]
[311446802,1705132880381,341.15,0.00019297,2]
[311446803,1705132880591,341.15,0.00021561,2]
[311446804,1705132892119,1000.0,0.00021486,2]
[311446805,1705132893780,13914.242,0.00021961,2]
[311446806,1705132901817,3041.68165519,0.00022,2]
[311446807,1705132910133,1000.0,0.00021486,2]
[311446808,1705132921328,301.00675309,0.00022,2]
[311446809,1705132925462,563.2,0.00021208,2]
[311446810,1705132932139,1000.0,0.00021486,2]
[311446811,1705132945614,396.9506,0.00021971,2]
[311446812,1705132952144,1000.0,0.00021486,2]
[311446813,1705132972142,1000.0,0.00021486,2]
[311446814,1705132984595,10546.21017729,0.00022,2]
[311446815,1705132992147,1000.0,0.00021486,2]
[311446817,1705133008151,1000.0,0.00021486,2]
[311446821,1705133030158,1000.0,0.00021486,2]
[311446822,1705133035822,12594.59,0.00021196,2]
[311446823,1705133043429,151.03,0.00021355,2]
[311446824,1705133043803,151.03,0.00021911,2]
[311446825,1705133046273,1000.0,0.00021486,2]
[311446827,1705133060382,409.92,0.000212,2]
[311446828,1705133062454,432.41,0.000212,2]
[311446829,1705133064153,1000.0,0.00021486,2]
[311446830,1705133076661,58000.0,0.00018695,2]
[311446831,1705133078317,152.43,0.00021216,2]
[311446832,1705133079698,151.40112,0.00022,3]
[311446833,1705133084156,1000.0,0.00021486,2]
[311446834,1705133106149,1000.0,0.00021486,2]
[311446835,1705133122155,533.97714765,0.00021486,2]
[311446836,1705133159192,2000.0,0.00021199,2]
[311446837,1705133208000,-222.80459909,0.00022001,4]
[311446838,1705133208051,-277.19540091,0.00022001,2]
[311446839,1705133210772,591.43238152,0.0002198,2]
[311446840,1705133227936,166.37385207,0.00021929,4]
[311446841,1705133245574,500.0,0.00021918,2]
[311446842,1705133265592,160.96,0.00021435,2]
[311446844,1705133326678,394.28825436,0.0002198,2]
[311446845,1705133337637,307.03,0.00019304,2]
[311446846,1705133337841,307.03,0.00021568,2]
[311446847,1705133356932,250.9169,0.00021971,2]
[311446848,1705133360578,281.6,0.00021215,2]
[311446859,1705133431601,-793.50547224,0.00022001,2]
[311446860,1705133431614,-1696.82880543,0.00022001,2]
[311446861,1705133431626,-5203.14916456,0.00022001,2]
[311446862,1705133431660,-5883.12094514,0.00022001,2]
[311446863,1705133431697,-2271.7565,0.00022001,2]
[311446864,1705133431753,-255.47994,0.00022001,2]
[311446865,1705133431765,-1968.09555153,0.00022001,2]
[311446866,1705133431808,-612.90951479,0.00022001,2]
[311446881,1705133437603,-1477.54599615,0.00022001,2]
[311446882,1705133437665,-4752.29351327,0.00022001,2]
[311446883,1705133437675,-160.0059933,0.00022006,2]
[311446884,1705133437686,-297.45480263,0.00022029,2]
[311446885,1705133437695,-177.3909652,0.00022039,2]
[311446886,1705133437705,-2612.1915256,0.00022051,2]
[311446887,1705133437717,-410.67021678,0.00022051,2]
[311446888,1705133437764,-2160.79205762,0.00022051,2]
[311446889,1705133437773,-205.7176,0.00022051,2]
[311446890,1705133437783,-12402.0095,0.00022051,2]
[311446891,1705133437793,-19341.89636212,0.00022051,2]
[311446892,1705133437866,-951.26132272,0.00022051,2]
[311446893,1705133437878,-455.23866117,0.00022051,2]
[311446894,1705133437894,-343.81017987,0.00022051,2]
[311446895,1705133438044,-15118.10657412,0.00022051,2]
[311446896,1705133438054,-2432.2025,0.00022051,2]
[311446897,1705133438064,-2869.8311,0.00022051,2]
[311446898,1705133438074,-830.77203582,0.00022052,2]
[311446899,1705133438083,-152.97,0.0002207,2]
[311446900,1705133438092,-499.99,0.0002207,2]
[311446901,1705133438102,-42543.30076339,0.00022071,2]
[311446902,1705133438111,-150.0,0.0002208,2]
[311446903,1705133438121,-160.0059933,0.00022085,2]
[311446904,1705133438130,-157.6006374,0.0002215,2]
[311446905,1705133438140,-1454.05660519,0.0002215,2]
[311446906,1705133438149,-1006.48168237,0.0002215,2]
[311446907,1705133438158,-155.61937396,0.0002215,2]
[311446908,1705133438168,-1429.55505232,0.0002215,2]
[311446909,1705133438177,-347.171889,0.0002215,2]
[311446910,1705133438187,-1043.31105473,0.0002215,2]
[311446911,1705133438196,-474.69104359,0.0002215,2]
[311446912,1705133438206,-404.36592255,0.0002215,2]
[311446913,1705133438216,-3052.3554378,0.0002215,2]
[311446914,1705133438225,-302.23019713,0.0002215,2]
[311446915,1705133438235,-3754.35687669,0.0002215,2]
[311446916,1705133438245,-3037.03,0.00022151,2]
[311446917,1705133438254,-3037.03,0.00022151,2]
[311446918,1705133438264,-3037.03,0.00022151,2]
[311446919,1705133438273,-3037.03,0.00022151,2]
[311446920,1705133438282,-3037.03,0.00022151,2]
[311446921,1705133438292,-3037.03,0.00022151,2]
[311446922,1705133438302,-3037.03,0.00022151,2]
[311446923,1705133438311,-3037.03,0.00022151,2]
[311446924,1705133438321,-3037.03,0.00022151,2]
[311446925,1705133438330,-3037.03,0.00022151,2]
[311446926,1705133438340,-3037.03,0.00022151,2]
[311446927,1705133438349,-3037.03,0.00022151,2]
[311446928,1705133438358,-3037.03,0.00022151,2]
[311446929,1705133438368,-3037.03,0.00022151,2]
[311446930,1705133438377,-3037.03,0.00022151,2]
[311446931,1705133438387,-3037.03,0.00022151,2]
[311446932,1705133438397,-3037.03,0.00022151,2]
[311446933,1705133438407,-3037.03,0.00022151,2]
[311446934,1705133438417,-3037.03,0.00022151,2]
[311446935,1705133438427,-3037.03,0.00022151,2]
[311446936,1705133438438,-3037.03,0.00022151,2]
[311446937,1705133438448,-3037.03,0.00022151,2]
[311446938,1705133438458,-3037.03,0.00022151,2]
[311446939,1705133438468,-3037.10618557,0.00022151,2]
[311446940,1705133438477,-159.11585114,0.00022151,2]
[311446941,1705133438488,-2315.6460813,0.00022151,2]
[311446942,1705133438497,-2116.1261,0.00022152,2]
[311446943,1705133438506,-11970.2357,0.00022152,2]
[311446944,1705133438516,-256831.2028,0.00022152,2]
[311446945,1705133438526,-385.9718,0.00022152,2]
[311446946,1705133438535,-213.7777,0.00022152,2]
[311446947,1705133438545,-8359.8173,0.00022152,2]
[311446948,1705133438554,-131910.1191,0.00022152,2]
[311446949,1705133438563,-1000.0,0.00022154,2]
[311446950,1705133438573,-160.0059933,0.00022165,2]
[311446951,1705133438583,-830.7720358,0.00022173,2]
[311446952,1705133438593,-432.41,0.00022179,2]
[311446953,1705133438602,-152.97,0.00022188,2]
[311446954,1705133438611,-251.69267644,0.00022194,2]
[311446955,1705133438621,-215.1635691,0.0002223,2]
[311446956,1705133438631,-418.95927661,0.00022241,2]
[311446957,1705133438640,-160.0059933,0.00022244,2]
[311446958,1705133438650,-175.3949327,0.0002225,2]
[311446959,1705133438659,-253.96837294,0.00022252,2]
[311446960,1705133438669,-254.62988043,0.00022252,2]
[311446961,1705133438678,-920.40049716,0.00022252,2]
[311446962,1705133438687,-2315.2817868,0.00022252,2]
[311446963,1705133438697,-1206.80470232,0.00022252,2]
[311446964,1705133438706,-155.0,0.00022252,2]
[311446965,1705133438715,-3929.69462296,0.00022252,2]
[311446966,1705133438725,-155.41123668,0.00022252,2]
[311446967,1705133438737,-2619.42571149,0.00022252,2]
[311446968,1705133438746,-355.59710211,0.00022252,2]
[311446969,1705133438756,-155.29193301,0.00022252,2]
[311446970,1705133438765,-1213.31075835,0.00022252,2]
[311446971,1705133438775,-155.48516503,0.00022252,2]
[311446972,1705133438784,-259.87169978,0.00022252,2]
[311446973,1705133438794,-189.057,0.00022252,2]
[311446974,1705133438804,-205.07566143,0.00022252,2]
[311446975,1705133438813,-7774.2456972,0.00022252,2]
[311446976,1705133438823,-637.66467994,0.00022252,2]
[311446977,1705133438833,-486.30659878,0.00022252,2]
[311446978,1705133438843,-162.32363726,0.00022252,2]
[311446979,1705133438853,-247.56117841,0.00022252,2]
[311446980,1705133438862,-4630.74851402,0.00022252,2]
[311446981,1705133438872,-155.26734927,0.00022252,2]
[311446982,1705133438882,-318.39239097,0.00022252,2]
[311446983,1705133438891,-203.27312273,0.00022252,2]
[311446984,1705133438901,-387.95276072,0.00022252,2]
[311446985,1705133438911,-221.19148093,0.00022252,2]
[311446986,1705133438921,-155.57516898,0.00022252,2]
[311446987,1705133438931,-1915.13815693,0.00022252,2]
[311446988,1705133438940,-525.39497036,0.00022252,2]
[311446989,1705133438950,-221.77818885,0.00022252,2]
[311446990,1705133438960,-2357.46215418,0.00022252,2]
[311446991,1705133438969,-438.70757587,0.00022252,2]
[311446992,1705133438979,-5194.47565066,0.00022252,2]
[311446993,1705133438989,-235.87030166,0.00022252,2]
[311446994,1705133438999,-4536.13948098,0.00022252,2]
[311446995,1705133439009,-315.16310047,0.00022252,2]
[311446996,1705133439019,-206.03318007,0.00022252,2]
[311446997,1705133439032,-222.7246654,0.00022252,2]
[311446998,1705133439042,-303.11983838,0.00022252,2]
[311446999,1705133439053,-2943.34420832,0.00022252,2]
[311447000,1705133439063,-155.0,0.00022252,2]
[311447001,1705133439074,-572.14510643,0.00022252,2]
[311447002,1705133439083,-25526.7278144,0.00022253,2]
[311447003,1705133439093,-144999.86900625,0.00022254,2]
[311447004,1705133439105,-830.7720358,0.00022294,2]
[311447005,1705133439114,-176.61,0.00022296,2]
[311447006,1705133439123,-152.97,0.00022306,2]
[311447007,1705133439132,-720.23,0.00022308,2]
[311447008,1705133439141,-160.0059933,0.00022324,2]
[311447009,1705133439150,-160.0059933,0.00022403,2]
[311447010,1705133439159,-186.24132107,0.00022415,3]
[311447011,1705133439169,-830.7720358,0.00022415,2]
[311447012,1705133439179,-152.97,0.00022424,2]
[311447013,1705133439189,-160.96,0.00022443,2]
[311447014,1705133439199,-151.03,0.00022467,2]
[311447015,1705133439209,-160.0059933,0.00022483,2]
[311447016,1705133439218,-251.69267642,0.00022497,2]
[311447017,1705133439228,-830.7720358,0.00022537,2]
[311447018,1705133439238,-152.97,0.00022542,2]
[311447019,1705133439247,-160.0059933,0.00022562,2]
[311447020,1705133439256,-150.0,0.00022606,2]
[311447021,1705133439266,-160.0059933,0.00022642,2]
[311447022,1705133439275,-830.7720358,0.00022658,2]
[311447023,1705133439284,-152.97,0.0002266,2]
[311447024,1705133439293,-74852.0,0.0002267,2]
[311447025,1705133439304,-23074.0457,0.000227,2]
[311447026,1705133439313,-19755.0846,0.000227,2]
[311447027,1705133439323,-500.0,0.000227,2]
[311447028,1705133439332,-1191.4782,0.000227,2]
[311447029,1705133439343,-1000.0,0.000227,2]
[311447030,1705133439353,-160.0059933,0.00022721,2]
[311447031,1705133439362,-150.0,0.00022722,2]
[311447032,1705133439371,-150.0,0.00022738,2]
[311447033,1705133439381,-500.0,0.00022741,2]
[311447034,1705133439391,-1500.0,0.00022759,2]
[311447035,1705133439400,-150.0,0.00022762,2]
[311447036,1705133439410,-1500.0,0.00022767,2]
[311447037,1705133439419,-150.0,0.00022767,2]
[311447038,1705133439428,-1753.3485187,0.00022768,2]
[311447039,1705133439438,-12628.413093,0.0002277,2]
[311447040,1705133439447,-150.0,0.00022771,2]
[311447041,1705133439457,-150.0,0.00022772,2]
[311447042,1705133439467,-152.97,0.00022778,2]
[311447043,1705133439476,-830.7720358,0.00022779,2]
[311447044,1705133439486,-150.0,0.00022784,2]
[311447045,1705133439495,-938052.2140316,0.00022799,2]
[311447046,1705133439504,-150.0,0.00022799,2]
[311447047,1705133439514,-1512.40354222,0.00022799,2]
[311447048,1705133439523,-11850.50101275,0.00022799,2]
[311447049,1705133439533,-279.4738317,0.00022799,2]
[311447050,1705133439542,-1348.68318858,0.00022799,2]
[311447051,1705133439552,-205.29749463,0.00022799,4]
[311447052,1705133439561,-251.69267642,0.00022799,2]
[311447053,1705133439570,-176.2402856,0.000228,2]
[311447054,1705133439579,-312.75490366,0.000228,2]
[311447055,1705133439771,-160.0059933,0.00022801,2]
[311447056,1705133439781,-199.90214082,0.00022813,2]
[311447057,1705133439791,-150.0,0.00022814,2]
[311447058,1705133439800,-200.0,0.00022816,2]
[311447059,1705133439809,-200.0,0.00022816,2]
[311447060,1705133439819,-800.0,0.00022816,2]
[311447061,1705133439829,-150.0,0.00022819,2]
[311447062,1705133439838,-150.0,0.00022825,2]
[311447063,1705133439848,-312.75490364,0.00022825,2]
[311447064,1705133439857,-150.0,0.00022842,2]
[311447065,1705133439866,-150.0,0.00022846,2]
[311447066,1705133439876,-150.0,0.00022849,2]
[311447067,1705133439884,-1512.40354221,0.0002285,2]
[311447068,1705133439893,-11850.50101275,0.0002285,2]
[311447069,1705133439903,-279.47383168,0.0002285,2]
[311447070,1705133439912,-1348.68318858,0.0002285,2]
[311447071,1705133439921,-312.75490364,0.0002285,2]
[311447072,1705133439931,-150.0,0.00022874,2]
[311447073,1705133439940,-312.75490364,0.00022875,2]
[311447074,1705133439949,-150.0,0.00022876,2]
[311447075,1705133439957,-160.0059933,0.0002288,2]
[311447076,1705133439966,-150.0,0.0002288,2]
[311447078,1705133439975,-152.97,0.00022896,2]
[311447080,1705133439984,-5000.0,0.00022899,2]
[311447081,1705133439993,-920.0,0.00022899,2]
[311447082,1705133440001,-16100.14846878,0.000229,2]
[311447083,1705133440010,-133511.5175,0.000229,2]
[311447084,1705133440020,-15782.20891687,0.000229,2]
[311447085,1705133440031,-8113.6505,0.000229,2]
[311447086,1705133440041,-248.371,0.000229,2]
[311447087,1705133440050,-819.22,0.000229,2]
[311447088,1705133440059,-196.944,0.000229,2]
[311447090,1705133440068,-1495.615,0.000229,2]
[311447091,1705133440078,-1014.755,0.000229,2]
[311447092,1705133440087,-312.75490364,0.000229,2]
[311447093,1705133440097,-156.84378548,0.000229,2]
[311447094,1705133440106,-156.84378542,0.000229,2]
[311447095,1705133440115,-156.84378542,0.000229,2]
[311447096,1705133440124,-156.84378542,0.000229,2]
[311447097,1705133440133,-156.84378542,0.000229,2]
[311447098,1705133440142,-156.84378542,0.000229,2]
[311447099,1705133440151,-156.84378542,0.000229,2]
[311447100,1705133440160,-156.84378542,0.000229,2]
[311447101,1705133440171,-156.84378542,0.000229,2]
[311447102,1705133440180,-156.84378542,0.000229,2]
[311447103,1705133440189,-156.84378542,0.000229,2]
[311447104,1705133440198,-156.84378542,0.000229,2]
[311447105,1705133440207,-156.84378542,0.000229,2]
[311447106,1705133440217,-830.7720358,0.000229,2]
[311447107,1705133440226,-1512.40354221,0.000229,2]
[311447108,1705133440236,-11850.50101275,0.000229,2]
[311447109,1705133440245,-279.47383168,0.000229,2]
[311447110,1705133440254,-1348.68318858,0.000229,2]
[311447111,1705133440263,-2997.409,0.000229,2]
[311447112,1705133440272,-19683.0,0.000229,2]
[311447113,1705133440281,-3452.082,0.000229,2]
[311447114,1705133440291,-14376.971,0.000229,2]
[311447115,1705133440300,-770.716,0.000229,2]
[311447116,1705133440309,-2296.36,0.000229,2]
[311447117,1705133440318,-213.722,0.000229,2]
[311447118,1705133440327,-1054.575,0.000229,2]
[311447119,1705133440336,-150.0,0.0002292,2]
[311447120,1705133440346,-150.0,0.00022922,2]
[311447121,1705133440358,-1500.0,0.00022935,2]
[311447122,1705133440367,-293.29955994,0.00022945,2]
[311447123,1705133440376,-150.0,0.00022951,2]
[311447124,1705133440385,-150.0,0.00022951,2]
[311447125,1705133440394,-1500.0,0.00022954,2]
[311447126,1705133440403,-150.0,0.00022959,2]
[311447127,1705133440413,-150.0,0.00022961,2]
[311447128,1705133440422,-150.0,0.00022962,2]
[311447129,1705133440431,-304957.04419538,0.0002298,2]
[311447130,1705133440441,-150.0,0.00022984,2]
[311447131,1705133440450,-150.0,0.00022986,2]
[311447132,1705133440459,-41382.0,0.00022986,2]
[311447133,1705133440468,-20994.5307189,0.00022995,2]
[311447134,1705133440477,-1155.6121558,0.00022995,2]
[311447135,1705133440486,-1093.7325792,0.00022995,2]
[311447136,1705133440495,-3777.133518,0.00022995,2]
[311447137,1705133440504,-141486.2349989,0.00022995,2]
[311447138,1705133440514,-1121.0407885,0.00022995,2]
[311447139,1705133440525,-262.96284194,0.00022998,2]
[311447140,1705133440535,-1165.51150563,0.00022998,2]
[311447141,1705133440544,-2605.00976432,0.00022998,2]
[311447142,1705133440554,-327.86909136,0.00022998,2]
[311447143,1705133440564,-1046.21904895,0.00022998,2]
[311447144,1705133440573,-162.79587329,0.00022998,2]
[311447145,1705133440582,-156.24527716,0.00022998,2]
[311447146,1705133440591,-155.97598439,0.00022998,2]
[311447147,1705133440600,-155.46805855,0.00022998,2]
[311447148,1705133440609,-155.50563666,0.00022998,2]
[311447149,1705133440619,-303.32016002,0.00022998,2]